fUSD/lending_fUSD_20260512
["ID","MTS","AMOUNT","RATE_DAILY","PERIOD"]
[422060407,1778538649000,-5000.0,0.00038,39]
[422060409,1778538649000,-300.0,0.00038,5]
[422060420,1778538649000,-5000.0,0.00038,21]
[422060411,1778538649000,-150.0,0.00038,4]
[422060422,1778538649000,-471.29609161,0.00038,2]
[422060413,1778538649000,-10000.0,0.00038,2]
[422060417,1778538649000,-4665.76985136,0.00038,3]
[422060424,1778538649000,-238398.71161913,0.00038,2]
[422060415,1778538649000,-300.0,0.00038,120]
[422060388,1778538649000,-184.83,0.00037869,100]
[422060486,1778538649000,-930.57432645,0.00038356,7]
[422060608,1778538649000,-917.55,0.000391,30]
[422060498,1778538649000,-1419.6,0.00038356,120]
[422060576,1778538649000,-394.08858228,0.000389,30]
[422060563,1778538649000,-21272.0,0.000388,120]
[422060567,1778538649000,-299.1535304,0.0003885,30]
[422060565,1778538649000,-5250.0364445,0.00038834,2]
[422060578,1778538649000,-394.08858226,0.000389,30]
[422060581,1778538649000,-394.08858226,0.000389,30]
[422060583,1778538649000,-1002.0,0.00038904,30]
[422060595,1778538649000,-5000.0,0.00039,40]
[422060593,1778538649000,-17584.98874753,0.00039,120]
[422060597,1778538649000,-200.0,0.00039,7]
[422060599,1778538649000,-2068.38,0.00039,48]
[422060600,1778538649000,-204.94692895,0.00039,5]
[422060587,1778538649000,-347.70426948,0.00039,2]
[422060585,1778538649000,-50000.0,0.00039,44]
[422060601,1778538649000,-192.059999,0.00039,16]
[422060589,1778538649000,-10000.0,0.00039,2]
[422060591,1778538649000,-190.98130844,0.00039,5]
[422060602,1778538649000,-3109.81440979,0.00039,14]
[422060603,1778538649000,-1006.8767744,0.00039,2]
[422060604,1778538649000,-1120.99818771,0.00039,7]
[422060606,1778538649000,-2300.7335,0.00039036,2]
[422060613,1778538649000,-1562.0,0.00039178,30]
[422060609,1778538649000,-170.07819498,0.00039105,120]
[422060611,1778538649000,-511.0,0.00039116,17]
[422060491,1778538649000,-222.50259884,0.00038356,2]
[422060574,1778538649000,-2000.0,0.000389,7]
[422060572,1778538649000,-160.9,0.000389,120]
[422060612,1778538649000,-2300.7335,0.00039173,2]
[422060569,1778538649000,-2300.7335,0.00038899,2]
[422060502,1778538649000,-150.0,0.00038356,5]
[422060505,1778538649000,-250.0,0.00038359,5]
[422060507,1778538649000,-350.0,0.00038362,5]
[422060518,1778538649000,-707.95288962,0.00038421,2]
[422060520,1778538649000,-1000.0,0.00038441,120]
[422060509,1778538649000,-450.0,0.00038364,5]
[422060515,1778538649000,-700.01539762,0.00038373,5]
[422060560,1778538649000,-350.0,0.00038767,5]
[422060511,1778538649000,-550.0,0.00038367,5]
[422060513,1778538649000,-650.0,0.0003837,5]
[422060522,1778538649000,-2300.7335,0.00038488,2]
[422060527,1778538649000,-49607.29092161,0.000385,2]
[422060529,1778538649000,-4884.49,0.000385,14]
[422060525,1778538649000,-5000.0,0.000385,21]
[422060544,1778538649000,-5000.0,0.00038715,2]
[422060558,1778538649000,-2300.7335,0.00038762,2]
[422060542,1778538649000,-5000.0,0.00038715,2]
[422060556,1778538649000,-5000.0,0.00038743,2]
[422060553,1778538649000,-5000.0,0.00038743,2]
[422060551,1778538649000,-5000.0,0.00038743,2]
[422060536,1778538649000,-5000.0,0.00038673,2]
[422060540,1778538649000,-5000.0,0.00038715,2]
[422060549,1778538649000,-5000.0,0.00038743,2]
[422060547,1778538649000,-5000.0,0.00038715,2]
[422060531,1778538649000,-2300.7335,0.00038625,2]
[422060534,1778538649000,-5000.0,0.00038673,2]
[422060538,1778538649000,-5000.0,0.00038715,2]
[422060645,1778538650000,-2500.0,0.000397,14]
[422060641,1778538650000,-149980.5,0.0003967,120]
[422060644,1778538650000,-917.55,0.000397,30]
[422060642,1778538650000,-3264.0,0.0003969,120]
[422060650,1778538650000,-350.0,0.00039726,5]
[422060646,1778538650000,-401.847,0.00039716,120]
[422060648,1778538650000,-79634.29,0.00039718,120]
[422060652,1778538650000,-30000.0,0.00039726,60]
[422060649,1778538650000,-2300.7335,0.00039721,2]
[422060643,1778538650000,-18997.02043461,0.000397,30]
[422060653,1778538650000,-1562.0,0.00039726,30]
[422060660,1778538650000,-1013.83,0.000398,60]
[422060655,1778538650000,-80000.0,0.0003974,90]
[422060661,1778538650000,-2000.0,0.000398,120]
[422060656,1778538650000,-13890.66689554,0.00039747,2]
[422060663,1778538650000,-500.0,0.000398,14]
[422060664,1778538650000,-5800.0,0.00039841,14]
[422060658,1778538650000,-31737.4769295,0.00039784,2]
[422060662,1778538650000,-2000.0,0.000398,120]
[422060657,1778538650000,-34463.91967447,0.00039747,2]
[422060665,1778538650000,-5800.0,0.00039849,14]
[422060659,1778538650000,-4042.9503681,0.00039784,2]
[422060651,1778538650000,-50000.0,0.00039726,60]
[422060654,1778538650000,-299.22462592,0.00039737,2]
[422060640,1778538650000,-150.0,0.00039669,2]
[422060626,1778538650000,-11063.61,0.000395,30]
[422060639,1778538650000,-274.87667877,0.00039621,2]
[422060666,1778538650000,-5800.0,0.00039857,14]
[422060614,1778538650000,-4884.48,0.000392,14]
[422060615,1778538650000,-688.61,0.00039243,120]
[422060619,1778538650000,-2300.7335,0.0003931,2]
[422060617,1778538650000,-1035.72,0.00039243,120]
[422060618,1778538650000,-917.55,0.000393,30]
[422060616,1778538650000,-4210.7,0.00039243,120]
[422060621,1778538650000,-1873.5128,0.0003931,2]
[422060628,1778538650000,-160.0,0.000395,120]
[422060625,1778538650000,-1562.0,0.00039452,30]
[422060630,1778538650000,-1000.0,0.00039502,120]
[422060631,1778538650000,-80000.0,0.0003958,90]
[422060629,1778538650000,-917.55,0.000395,30]
[422060627,1778538650000,-4000.0,0.000395,100]
[422060622,1778538650000,-4884.48,0.000394,14]
[422060623,1778538650000,-2300.7335,0.00039447,2]
[422060620,1778538650000,-1030.3975,0.0003931,2]
[422060624,1778538650000,-361.69,0.00039452,30]
[422060632,1778538650000,-2300.7335,0.00039584,2]
[422060637,1778538650000,-4884.48,0.000396,14]
[422060635,1778538650000,-799.53663524,0.0003959,2]
[422060634,1778538650000,-6427.76337836,0.0003959,2]
[422060633,1778538650000,-198.20883558,0.0003959,8]
[422060636,1778538650000,-3587.24372626,0.00039599,10]
[422060638,1778538650000,-237.29424365,0.000396,120]
[422060647,1778538650000,-843.1215,0.00039716,120]
[422060677,1778538650000,-5800.0,0.000399,14]
[422060672,1778538650000,-5800.0,0.00039883,14]
[422060667,1778538650000,-2300.7335,0.00039858,2]
[422060705,1778538650000,-500.0,0.00039998,45]
[422060696,1778538650000,-219.23011724,0.00039997,31]
[422060702,1778538650000,-1280.88388878,0.00039998,48]
[422060699,1778538650000,-500.0,0.00039998,48]
[422060703,1778538650000,-152.0,0.00039998,45]
[422060698,1778538650000,-151.0,0.00039998,45]
[422060704,1778538650000,-152.0,0.00039998,48]
[422060707,1778538650000,-151.0,0.00039998,45]
[422060719,1778538650000,-151.0,0.00039999,41]
[422060714,1778538650000,-5762.24692352,0.00039999,30]
[422060710,1778538650000,-211.40802048,0.00039998,48]
[422060701,1778538650000,-1235.18214925,0.00039998,45]
[422060718,1778538650000,-500.0,0.00039999,41]
[422060708,1778538650000,-151.0,0.00039998,48]
[422060709,1778538650000,-203.86501493,0.00039998,45]
[422060712,1778538650000,-500.0,0.00039999,30]
[422060716,1778538650000,-500.0,0.00039999,30]
[422060715,1778538650000,-151.0,0.00039999,30]
[422060713,1778538650000,-2117.13087634,0.00039999,30]
[422060717,1778538650000,-1030.0,0.00039999,30]
[422060676,1778538650000,-344.81966951,0.000399,10]
[422060720,1778538650000,-518.5,0.00039999,41]
[422060723,1778538650000,-537.6845,0.00039999,43]
[422060722,1778538650000,-500.0,0.00039999,43]
[422060711,1778538650000,-3023.08268076,0.00039999,2]
[422060706,1778538650000,-500.0,0.00039998,48]
[422060721,1778538650000,-1068.11,0.00039999,41]
[422060697,1778538650000,-500.0,0.00039998,45]
[422060700,1778538650000,-151.0,0.00039998,48]
[422060668,1778538650000,-5800.0,0.00039866,14]
[422060670,1778538650000,-5800.0,0.00039875,14]
[422060674,1778538650000,-5800.0,0.00039892,14]
[422060671,1778538650000,-5800.0,0.00039883,14]
[422060673,1778538650000,-5800.0,0.00039892,14]
[422060675,1778538650000,-5800.0,0.00039892,14]
[422060678,1778538650000,-5451.82367329,0.000399,14]
[422060681,1778538650000,-707.95288962,0.000399,2]
[422060679,1778538650000,-5800.0,0.000399,14]
[422060680,1778538650000,-5800.0,0.000399,14]
[422060683,1778538650000,-28237.18568081,0.000399,15]
[422060669,1778538650000,-5800.0,0.00039875,14]
[422060682,1778538650000,-7196.71437315,0.000399,15]
[422060684,1778538650000,-500.0,0.000399,14]
[422060693,1778538650000,-152.0,0.00039997,31]
[422060695,1778538650000,-151.0,0.00039997,31]
[422060692,1778538650000,-252.10967032,0.00039997,31]
[422060690,1778538650000,-500.0,0.00039997,31]
[422060694,1778538650000,-500.0,0.00039997,31]
[422060685,1778538650000,-400.0,0.0003997,2]
[422060688,1778538650000,-299.22462592,0.0003999,7]
[422060687,1778538650000,-400.0,0.0003997,2]
[422060686,1778538650000,-400.0,0.0003997,2]
[422060689,1778538650000,-2300.7335,0.00039995,2]
[422060691,1778538650000,-151.0,0.00039997,31]
[422060747,1778538651000,-151.0,0.00039999,30]
[422060759,1778538651000,-165.29230854,0.00039999,30]
[422060748,1778538651000,-1000.0,0.00039999,30]
[422060749,1778538651000,-500.0,0.00039999,43]
[422060753,1778538651000,-314.27964716,0.00039999,30]
[422060751,1778538651000,-1030.59322867,0.00039999,41]
[422060752,1778538651000,-500.0,0.00039999,45]
[422060754,1778538651000,-151.0,0.00039999,43]
[422060750,1778538651000,-151.0,0.00039999,41]
[422060756,1778538651000,-151.0,0.00039999,45]
[422060763,1778538651000,-176.29,0.00039999,41]
[422060757,1778538651000,-151.0,0.00039999,50]
[422060767,1778538651000,-189.57680101,0.00039999,45]
[422060760,1778538651000,-205.36717928,0.00039999,41]
[422060761,1778538651000,-170.0,0.00039999,30]
[422060764,1778538651000,-156.587,0.00039999,41]
[422060765,1778538651000,-182.81273,0.00039999,43]
[422060766,1778538651000,-162.380719,0.00039999,43]
[422060762,1778538651000,-151.0,0.00039999,30]
[422060744,1778538651000,-500.0,0.00039999,30]
[422060758,1778538651000,-251.0,0.00039999,30]
[422060746,1778538651000,-152.0,0.00039999,50]
[422060736,1778538651000,-151.0,0.00039999,30]
[422060745,1778538651000,-500.0,0.00039999,41]
[422060768,1778538651000,-168.3888056,0.00039999,45]
[422060725,1778538651000,-1107.63007,0.00039999,43]
[422060724,1778538651000,-151.0,0.00039999,43]
[422060726,1778538651000,-500.0,0.00039999,45]
[422060729,1778538651000,-1148.61238259,0.00039999,45]
[422060728,1778538651000,-557.5788265,0.00039999,45]
[422060730,1778538651000,-620.0,0.00039999,30]
[422060727,1778538651000,-151.0,0.00039999,45]
[422060731,1778538651000,-500.0,0.00039999,50]
[422060755,1778538651000,-500.0,0.00039999,50]
[422060733,1778538651000,-1191.11104075,0.00039999,50]
[422060737,1778538651000,-666.72878,0.00039999,43]
[422060738,1778538651000,-156.587,0.00039999,41]
[422060743,1778538651000,-152.0,0.00039999,45]
[422060732,1778538651000,-151.0,0.00039999,50]
[422060735,1778538651000,-152.0,0.00039999,30]
[422060734,1778538651000,-642.94,0.00039999,41]
[422060739,1778538651000,-452.28344141,0.00039999,45]
[422060740,1778538651000,-152.0,0.00039999,41]
[422060742,1778538651000,-152.0,0.00039999,43]
[422060741,1778538651000,-259.15976462,0.00039999,43]
[422060779,1778538651000,-1934.38338737,0.00039999,30]
[422060784,1778538651000,-171.29688013,0.00039999,50]
[422060769,1778538651000,-151.0,0.00039999,30]
[422060799,1778538651000,-18611.0,0.0004,120]
[422060796,1778538651000,-15049.78718495,0.0004,120]
[422060800,1778538651000,-377.0,0.0004,120]
[422060798,1778538651000,-392.61862891,0.0004,120]
[422060803,1778538651000,-152.0,0.0004,120]
[422060801,1778538651000,-173.69,0.0004,120]
[422060802,1778538651000,-349942.01348472,0.0004,120]
[422060807,1778538651000,-500.0,0.0004,120]
[422060805,1778538651000,-277.95,0.0004,30]
[422060795,1778538651000,-157.11209211,0.0004,7]
[422060808,1778538651000,-201.09926868,0.0004,120]
[422060809,1778538651000,-731.52074262,0.0004,120]
[422060812,1778538651000,-334.20272563,0.0004,120]
[422060815,1778538651000,-408.45051396,0.0004,2]
[422060811,1778538651000,-194.77197129,0.0004,120]
[422060810,1778538651000,-398.61251282,0.0004,120]
[422060813,1778538651000,-348.13696481,0.0004,120]
[422060814,1778538651000,-245.77104992,0.0004,120]
[422060817,1778538651000,-201.35,0.0004,120]
[422060770,1778538651000,-1500.0,0.00039999,30]
[422060806,1778538651000,-600.0,0.0004,120]
[422060797,1778538651000,-500.0,0.0004,30]
[422060804,1778538651000,-161.0,0.0004,120]
[422060794,1778538651000,-1000000.0,0.0004,60]
[422060793,1778538651000,-1000000.0,0.0004,30]
[422060771,1778538651000,-196.59114265,0.00039999,50]
[422060776,1778538651000,-1734.62772924,0.00039999,30]
[422060774,1778538651000,-1613.0535,0.00039999,30]
[422060777,1778538651000,-1798.80895522,0.00039999,30]
[422060773,1778538651000,-1555.5,0.00039999,30]
[422060775,1778538651000,-1672.7364795,0.00039999,30]
[422060778,1778538651000,-1865.36488657,0.00039999,30]
[422060781,1778538651000,-156.587,0.00039999,41]
[422060782,1778538651000,-162.380719,0.00039999,43]
[422060780,1778538651000,-151.0,0.00039999,30]
[422060772,1778538651000,-209.40437684,0.00039999,41]
[422060783,1778538651000,-168.3888056,0.00039999,45]
[422060816,1778538651000,-2002.01425558,0.0004,4]
[422060789,1778538651000,-150.0,0.0004,120]
[422060792,1778538651000,-1000000.0,0.0004,120]
[422060791,1778538651000,-90794.90996273,0.0004,50]
[422060786,1778538651000,-150.0,0.0004,120]
[422060788,1778538651000,-150.0,0.0004,120]
[422060787,1778538651000,-150.0,0.0004,120]
[422060790,1778538651000,-221.49235948,0.0004,120]
[422060785,1778538651000,-50000.0,0.0004,47]
[422060844,1778538652000,-506.563,0.0004,10]
[422060852,1778538652000,-1011.60003444,0.0004,7]
[422060848,1778538652000,-200.0,0.0004,16]
[422060845,1778538652000,-160.35669356,0.0004,60]
[422060843,1778538652000,-482.0,0.0004,120]
[422060849,1778538652000,-435.74100092,0.0004,7]
[422060853,1778538652000,-6578.11053214,0.0004,120]
[422060847,1778538652000,-1562.0,0.0004,30]
[422060850,1778538652000,-5081.549999,0.0004,120]
[422060846,1778538652000,-351.74,0.0004,120]
[422060851,1778538652000,-241.36821009,0.0004,120]
[422060857,1778538652000,-5050.22773985,0.0004,21]
[422060856,1778538652000,-2438.79704164,0.0004,120]
[422060858,1778538652000,-30000.0,0.0004,21]
[422060865,1778538652000,-20786.7073959,0.0004,120]
[422060862,1778538652000,-719.21373851,0.0004,7]
[422060863,1778538652000,-9825.1862045,0.0004,3]
[422060861,1778538652000,-372.98201762,0.0004,2]
[422060859,1778538652000,-42218.90026731,0.0004,120]
[422060860,1778538652000,-417.91503406,0.0004,7]
[422060855,1778538652000,-3000.0,0.0004,7]
[422060854,1778538652000,-363.15938531,0.0004,15]
[422060841,1778538652000,-361.512,0.0004,120]
[422060818,1778538652000,-553.94458486,0.0004,120]
[422060842,1778538652000,-1404.85683451,0.0004,14]
[422060864,1778538652000,-10000.58473214,0.0004,6]
[422060819,1778538652000,-207.95743604,0.0004,67]
[422060820,1778538652000,-5655.61463327,0.0004,120]
[422060821,1778538652000,-1679.0,0.0004,14]
[422060822,1778538652000,-395.0,0.0004,120]
[422060823,1778538652000,-150.0,0.0004,120]
[422060826,1778538652000,-194.51,0.0004,120]
[422060829,1778538652000,-10057.70493033,0.0004,30]
[422060827,1778538652000,-601.20816958,0.0004,120]
[422060824,1778538652000,-165.29,0.0004,3]
[422060828,1778538652000,-390.8833265,0.0004,120]
[422060830,1778538652000,-2045.0462,0.0004,10]
[422060831,1778538652000,-500.0,0.0004,120]
[422060832,1778538652000,-6671.0,0.0004,120]
[422060836,1778538652000,-300.0,0.0004,5]
[422060834,1778538652000,-322204.34613043,0.0004,30]
[422060835,1778538652000,-74582.45924625,0.0004,30]
[422060837,1778538652000,-116845.1804362,0.0004,120]
[422060840,1778538652000,-5201.9733812,0.0004,41]
[422060839,1778538652000,-126000.0,0.0004,14]
[422060833,1778538652000,-171.81,0.0004,30]
[422060838,1778538652000,-31000.0,0.0004,10]
[422060867,1778538652000,-597.86277142,0.0004,30]
[422060825,1778538652000,-1319.53,0.0004,120]
[422060869,1778538652000,-428.4,0.0004,120]
[422060899,1778538652000,-5027.253533,0.0004,20]
[422060895,1778538652000,-5027.253533,0.0004,20]
[422060897,1778538652000,-5027.253533,0.0004,20]
[422060891,1778538652000,-5027.253533,0.0004,20]
[422060898,1778538652000,-5027.253533,0.0004,20]
[422060900,1778538652000,-5027.253533,0.0004,20]
[422060902,1778538652000,-500.0,0.0004,120]
[422060901,1778538652000,-5027.253538,0.0004,20]
[422060904,1778538652000,-500.0,0.0004,120]
[422060903,1778538652000,-500.0,0.0004,120]
[422060896,1778538652000,-5027.253533,0.0004,20]
[422060906,1778538652000,-500.0,0.0004,120]
[422060908,1778538652000,-500.0,0.0004,120]
[422060907,1778538652000,-500.0,0.0004,120]
[422060914,1778538652000,-206.82116762,0.0004,120]
[422060909,1778538652000,-500.0,0.0004,120]
[422060912,1778538652000,-500.0,0.0004,120]
[422060911,1778538652000,-500.0,0.0004,120]
[422060913,1778538652000,-500.0,0.0004,120]
[422060915,1778538652000,-1119.0,0.0004,30]
[422060916,1778538652000,-500.0,0.0004003,30]
[422060868,1778538652000,-427.21,0.0004,120]
[422060905,1778538652000,-500.0,0.0004,120]
[422060892,1778538652000,-5027.253533,0.0004,20]
[422060910,1778538652000,-500.0,0.0004,120]
[422060893,1778538652000,-5027.253533,0.0004,20]
[422060890,1778538652000,-5027.253533,0.0004,20]
[422060866,1778538652000,-22500.0,0.0004,120]
[422060873,1778538652000,-754.88,0.0004,120]
[422060874,1778538652000,-16958.77,0.0004,120]
[422060870,1778538652000,-634.83,0.0004,120]
[422060871,1778538652000,-4884.48,0.0004,14]
[422060876,1778538652000,-445.02,0.0004,120]
[422060875,1778538652000,-213.23,0.0004,120]
[422060872,1778538652000,-22500.0,0.0004,120]
[422060878,1778538652000,-699.49,0.0004,120]
[422060889,1778538652000,-5027.253533,0.0004,20]
[422060877,1778538652000,-283.35,0.0004,120]
[422060879,1778538652000,-302.17,0.0004,120]
[422060887,1778538652000,-5027.253533,0.0004,20]
[422060882,1778538652000,-5027.253533,0.0004,20]
[422060886,1778538652000,-5027.253533,0.0004,20]
[422060894,1778538652000,-5027.253533,0.0004,20]
[422060884,1778538652000,-5027.253533,0.0004,20]
[422060885,1778538652000,-5027.253533,0.0004,20]
[422060883,1778538652000,-5027.253533,0.0004,20]
[422060888,1778538652000,-5027.253533,0.0004,20]
[422060881,1778538652000,-767.26218527,0.0004,30]
[422060880,1778538652000,-354.284951,0.0004,3]
[422060936,1778538653000,-195.02,0.00040329,120]
[422060939,1778538653000,-250.43,0.00040329,120]
[422060934,1778538653000,-1403.56,0.0004031,120]
[422060938,1778538653000,-227.9,0.00040329,120]
[422060937,1778538653000,-151.24,0.00040329,120]
[422060944,1778538653000,-165.36,0.0004043,13]
[422060946,1778538653000,-170.94,0.0004043,13]
[422060942,1778538653000,-22500.0,0.00040375,120]
[422060943,1778538653000,-165.36,0.0004043,13]
[422060940,1778538653000,-157.72,0.00040329,120]
[422060947,1778538653000,-152.0,0.00040487,6]
[422060928,1778538653000,-451055.78038843,0.000403,120]
[422060959,1778538653000,-1444.0,0.00040658,120]
[422060945,1778538653000,-165.36,0.0004043,13]
[422060935,1778538653000,-274.87667876,0.00040325,2]
[422060921,1778538653000,-4986.4,0.00040254,120]
[422060932,1778538653000,-229.53,0.0004031,120]
[422060948,1778538653000,-5000.0,0.000405,120]
[422060925,1778538653000,-1562.0,0.00040274,30]
[422060918,1778538653000,-582.16,0.00040044,120]
[422060917,1778538653000,-500.0,0.0004003,30]
[422060920,1778538653000,-2300.7335,0.00040132,2]
[422060919,1778538653000,-150.15099589,0.000401,30]
[422060931,1778538653000,-150.0,0.0004031,120]
[422060924,1778538653000,-1873.513,0.00040269,2]
[422060923,1778538653000,-1030.3975,0.00040269,2]
[422060927,1778538653000,-160.96,0.000403,10]
[422060929,1778538653000,-6427.76337836,0.0004031,2]
[422060926,1778538653000,-388.1,0.0004029,60]
[422060933,1778538653000,-345.24,0.0004031,120]
[422060930,1778538653000,-799.53663524,0.0004031,2]
[422060922,1778538653000,-2300.7337,0.00040269,2]
[422060949,1778538653000,-160.08826997,0.000405,120]
[422060941,1778538653000,-186.35,0.00040329,120]
[422060960,1778538653000,-3785.33,0.00040676,2]
[422060973,1778538653000,-237.70895385,0.00040743,120]
[422060972,1778538653000,-5000.0,0.00040742,15]
[422060975,1778538653000,-198.0,0.0004075,120]
[422060978,1778538653000,-54365.60329627,0.00040774,2]
[422060977,1778538653000,-511.0,0.00040751,19]
[422060976,1778538653000,-22500.0,0.0004075,120]
[422060970,1778538653000,-7081.58831,0.00040741,2]
[422060979,1778538653000,-59816.88574059,0.00040774,2]
[422060982,1778538653000,-365.0,0.00027781,10]
[422060981,1778538653000,-752.0,0.00027781,10]
[422060984,1778538653000,-483.72999423,0.00037041,2]
[422060985,1778538653000,-1935.39579468,0.00040774,2]
[422060983,1778538653000,-300.0,0.00037041,2]
[422060955,1778538653000,-5000.0,0.000406,120]
[422060980,1778538653000,-161.83,0.00026165,2]
[422060969,1778538653000,-219.0,0.00040738,60]
[422060974,1778538653000,-182.15,0.0004075,120]
[422060968,1778538653000,-500.0,0.00040738,60]
[422060956,1778538653000,-161.0,0.000406,120]
[422060951,1778538653000,-1562.0,0.00040548,30]
[422060953,1778538653000,-4986.4,0.00040578,120]
[422060966,1778538653000,-500.0,0.000407,14]
[422060957,1778538653000,-660.96187199,0.000406,120]
[422060950,1778538653000,-5000.0,0.000405,21]
[422060954,1778538653000,-255.83973053,0.0004058,2]
[422060958,1778538653000,-500.0,0.000406,14]
[422060952,1778538653000,-1000.0,0.00040563,120]
[422060961,1778538653000,-440.29,0.00040685,5]
[422060962,1778538653000,-14205.1792,0.000407,120]
[422060965,1778538653000,-40182.96182301,0.000407,120]
[422060964,1778538653000,-167.85245578,0.000407,120]
[422060967,1778538653000,-1064.83990709,0.000407,12]
[422060971,1778538653000,-902.1041631,0.00040741,2]
[422060963,1778538653000,-3751.81260177,0.000407,120]
[422060994,1778538654000,-161.83,0.00026329,30]
[422060993,1778538654000,-161.83,0.00026247,7]
[422060991,1778538654000,-161.83,0.00026027,7]
[422060989,1778538654000,-139.0353365,0.00025342,30]
[422060990,1778538654000,-161.83,0.00025685,2]
[422060987,1778538654000,-161.83,0.00025,7]
[422060986,1778538654000,-161.83,0.00024658,2]
[422060996,1778538654000,-161.83,0.00026411,2]
[422060988,1778538654000,-22.7946635,0.00025342,30]
[422061006,1778538654000,-300.0,0.00037041,2]
[422060992,1778538654000,-612.385,0.00026213,2]
[422061007,1778538654000,-22372.16699646,0.00040774,2]
[422060995,1778538654000,-161.83,0.0002637,30]
[422061005,1778538654000,-300.0,0.00037041,2]
[422061003,1778538654000,-229.88500633,0.000307,2]
[422061002,1778538654000,-31.6803365,0.00027397,30]
[422061004,1778538654000,-309.60276076,0.00037041,2]
[422061000,1778538654000,-161.83,0.00027054,7]
[422060999,1778538654000,-161.83,0.00026712,2]
[422060997,1778538654000,-161.83,0.00026493,7]
[422060998,1778538654000,-161.88,0.00026575,30]
[422061001,1778538654000,-130.2296635,0.00027397,30]
[422061008,1778539507000,897.86900017,0.0001975,2]
[422061009,1778539545000,152.95,0.00014994,2]
[422061034,1778539832000,-160.0,0.00022909,2]
[422061036,1778539832000,-276.0,0.00023,2]
[422061035,1778539832000,-363.0,0.00023,2]
[422061037,1778539832000,-207.0,0.00023106,2]
[422061038,1778539832000,-33468.36476734,0.00023107,2]
[422061033,1778539832000,-276.0,0.00022,2]
[422061039,1778539832000,-587.0,0.00023567,2]
[422061046,1778539832000,-151.0,0.00024324,2]
[422061042,1778539832000,-276.0,0.00024,2]
[422061041,1778539832000,-363.0,0.00024,2]
[422061043,1778539832000,-183.63,0.00024174,2]
[422061045,1778539832000,-1122.84,0.00024174,2]
[422061032,1778539832000,-169.0,0.00022,2]
[422061049,1778539832000,-152.95,0.00024599,2]
[422061048,1778539832000,-506.0,0.00024397,2]
[422061051,1778539832000,-284.0,0.00025,2]
[422061040,1778539832000,-164.2,0.00023915,2]
[422061031,1778539832000,-363.0,0.00022,2]
[422061025,1778539832000,-363.0,0.00021,2]
[422061023,1778539832000,-276.0,0.0002,2]
[422061013,1778539832000,-2500.0,0.00019823,2]
[422061012,1778539832000,-152.95,0.00019797,2]
[422061014,1778539832000,-230.27603144,0.0001985,2]
[422061016,1778539832000,-2500.0,0.00019872,2]
[422061017,1778539832000,-523.70784338,0.00019872,2]
[422061015,1778539832000,-300.0,0.00019871,2]
[422061019,1778539832000,-2500.0,0.00019872,2]
[422061029,1778539832000,-420.0,0.0002164,2]
[422061030,1778539832000,-2500.0,0.00021776,2]
[422061018,1778539832000,-1976.29215662,0.00019872,2]
[422061020,1778539832000,-2992.89666723,0.000199,2]
[422061021,1778539832000,-363.0,0.0002,2]
[422061022,1778539832000,-153.0,0.0002,2]
[422061044,1778539832000,-370.78,0.00024174,2]
[422061024,1778539832000,-150.0,0.0002,2]